bitfinex-derivatives/quotes_BTCF0:USTF0_20260131
["timestamp","ask_amount","ask_price","bid_price","bid_amount"]
[1769888777418,0.012893,77670.0,77649.0,0.0928]
[1769888777618,0.0928,77673.0,77649.0,0.0928]
[1769888777817,0.00011508,77672.0,77652.0,0.012896]
[1769888778012,0.01289,77691.0,77650.0,0.28748071]
[1769888778317,0.0928,77693.0,77650.0,0.28748071]
[1769888778318,0.2215689,77693.0,77652.0,0.28748071]
[1769888778521,0.01289,77692.0,77659.0,0.012895]
[1769888778916,0.0928,77693.0,77659.0,0.012895]
[1769888779222,0.0928,77693.0,77659.0,0.11504475]
[1769888779725,0.39913295,77694.0,77662.0,0.10214975]
[1769888779922,0.39913295,77694.0,77663.0,0.27031611]
[1769888780124,0.39913295,77694.0,77663.0,0.10214975]
[1769888780326,0.105689,77694.0,77664.0,0.36324024]
[1769888780524,0.105689,77694.0,77664.0,0.19494975]
[1769888780719,0.29344395,77689.0,77664.0,0.19494975]
[1769888780928,0.29344395,77686.0,77653.0,0.10214975]
[1769888781115,0.29344395,77663.0,77629.0,0.15322463]
[1769888781425,0.012892,77675.0,77623.0,0.15322463]
[1769888781426,0.29344395,77652.0,77623.0,0.15322463]
[1769888781614,0.29344395,77652.0,77614.0,0.017902]
[1769888781821,0.12875066,77651.0,77620.0,0.28764122]
[1769888782022,0.12875066,77651.0,77623.0,0.012901]
[1769888782224,0.012895,77659.0,77622.0,0.012901]
[1769888782425,0.29344395,77655.0,77620.0,0.00016051]
[1769888782732,0.29344395,77655.0,77621.0,0.012901]
[1769888782926,0.30633995,77655.0,77621.0,0.012901]
[1769888783123,0.29344395,77652.0,77620.0,0.00016051]
[1769888783430,0.30633995,77652.0,77620.0,0.00016051]
[1769888783620,0.29344395,77652.0,77620.0,0.00016051]
[1769888783820,0.1288029,77651.0,77623.0,0.001]
[1769888784421,0.42224685,77651.0,77623.0,0.001]
[1769888784722,0.29344395,77629.0,77601.0,0.0928]
[1769888784916,0.29344395,77624.0,77591.0,0.012906]
[1769888785118,0.29344395,77622.0,77585.0,0.0928]
[1769888785320,0.29344395,77616.0,77585.0,0.0928]
[1769888785522,0.12885352,77621.0,77588.0,0.012907]
[1769888785725,0.2936028,77620.0,77585.0,0.0928]
[1769888785922,0.29344395,77615.0,77585.0,0.0928]
[1769888786128,0.00015885,77620.0,77561.0,0.09284]
[1769888786129,0.29344395,77605.0,77561.0,0.09284]
[1769888786332,0.29344395,77603.0,77566.0,0.01291]
[1769888786534,0.29344395,77593.0,77561.0,0.09284]
[1769888786739,0.29344395,77591.0,77561.0,0.09284]
[1769888786941,0.29344395,77589.0,77561.0,0.09284]
[1769888787238,0.00015407,77590.0,77575.0,0.012909]
[1769888787943,0.38628395,77617.0,77576.0,0.38032071]
[1769888788147,0.09284,77621.0,77593.0,0.012906]
[1769888788344,0.09284,77621.0,77578.0,0.28748071]
[1769888788547,0.09284,77621.0,77598.0,0.012905]
[1769888788843,0.09284,77621.0,77594.0,0.012906]
[1769888789139,0.29344395,77629.0,77593.0,0.09284]
[1769888789342,0.09284,77636.0,77610.0,0.012903]
[1769888789532,0.09284,77636.0,77602.0,0.012904]
[1769888789740,0.12885352,77635.0,77602.0,0.012904]
[1769888789939,0.12885352,77635.0,77605.0,0.012904]
[1769888790246,0.09284,77636.0,77610.0,0.012903]
[1769888790442,0.29344395,77635.0,77605.0,0.012904]
[1769888790743,0.42227672,77635.0,77611.0,0.012903]
[1769888790939,0.29344395,77635.0,77595.0,0.09284]
[1769888791145,0.29344395,77633.0,77602.0,0.012904]
[1769888791640,0.29344395,77629.0,77596.0,0.012905]
[1769888791846,0.29344395,77627.0,77595.0,0.09284]
[1769888792049,0.29344395,77625.0,77595.0,0.09284]
[1769888792444,0.29344395,77621.0,77595.0,0.09284]
[1769888792640,0.30634595,77617.0,77580.0,0.012908]
[1769888792844,0.29344395,77607.0,77571.0,0.105749]
[1769888793045,0.09284,77606.0,77574.0,0.012909]
[1769888793240,0.29344395,77605.0,77571.0,0.09284]
[1769888793444,0.29344395,77603.0,77571.0,0.09284]
[1769888793645,0.29344395,77601.0,77571.0,0.09284]
[1769888793947,0.09284,77606.0,77580.0,0.012908]
[1769888794249,0.09284,77606.0,77572.0,0.28748071]
[1769888794438,0.09284,77606.0,77596.0,0.012905]
[1769888794648,0.08892276,77606.0,77596.0,0.012905]
[1769888794846,0.33972,77619.0,77596.0,0.012905]
[1769888795042,0.33972,77619.0,77592.0,0.012906]
[1769888795247,0.33972,77619.0,77595.0,0.012906]
[1769888795446,0.09288,77620.0,77595.0,0.012906]
[1769888795649,0.09288,77620.0,77598.0,0.012905]
[1769888795847,0.09288,77620.0,77594.0,0.012906]
[1769888796150,0.29344395,77619.0,77596.0,0.012905]
[1769888796344,0.09288,77620.0,77591.0,0.28748071]
[1769888796649,0.1296,77665.0,77587.0,0.33976]
[1769888796650,0.09288,77636.0,77617.0,0.012902]
[1769888796844,0.02364942,77674.0,77617.0,0.09288]
[1769888796845,0.09288,77650.0,77617.0,0.09288]
[1769888797047,0.12885435,77663.0,77630.0,0.0129]
[1769888797242,0.27509815,77669.0,77634.0,0.012899]
[1769888797443,0.09288,77671.0,77647.0,0.012897]
[1769888797843,0.09288,77671.0,77634.0,0.29065889]
[1769888798042,0.09288,77671.0,77647.0,0.012897]
[1769888798249,0.09288,77671.0,77642.0,0.012898]
[1769888798443,0.09288,77671.0,77637.0,0.33976]
[1769888798643,0.09288,77671.0,77639.0,0.012898]
[1769888798839,0.09288,77671.0,77637.0,0.33976]
[1769888798840,0.09288,77671.0,77642.0,0.012898]
[1769888799045,0.09288,77671.0,77637.0,0.33976]
[1769888799244,0.09288,77671.0,77638.0,0.12876807]
[1769888799445,0.09288,77671.0,77646.0,0.012897]
[1769888799648,0.09288,77671.0,77634.0,0.29065889]
[1769888799848,0.09288,77671.0,77644.0,0.012897]
[1769888800045,0.09288,77671.0,77642.0,0.001]
[1769888800243,0.09288,77671.0,77643.0,0.012898]
[1769888800752,0.09288,77671.0,77642.0,0.001]
[1769888800753,0.09288,77671.0,77634.0,0.29065889]
[1769888801464,0.09288,77671.0,77652.0,0.012896]
[1769888801749,0.012885,77719.0,77635.0,0.12877885]
[1769888801750,0.27147372,77696.0,77661.0,0.012895]
[1769888801946,0.27147372,77696.0,77662.0,0.105734]
[1769888802252,0.27147372,77696.0,77662.0,0.09284]
[1769888802253,0.12877885,77692.0,77662.0,0.09284]
[1769888802450,0.27147372,77696.0,77662.0,0.09284]
[1769888802753,0.12873492,77695.0,77667.0,0.012894]
[1769888802950,0.12873492,77695.0,77680.0,0.012891]
[1769888803146,0.27147372,77710.0,77680.0,0.012891]
[1769888803347,0.27147372,77710.0,77676.0,0.09284]
[1769888803552,0.28436072,77705.0,77676.0,0.09284]
[1769888803851,0.27147372,77698.0,77650.0,0.27352863]
[1769888804150,0.27147372,77688.0,77652.0,0.012896]
[1769888804344,0.27147372,77688.0,77655.0,0.012896]
[1769888804545,0.27147372,77688.0,77654.0,0.012896]
[1769888805150,0.27147372,77688.0,77651.0,0.43252]
[1769888805151,0.27147372,77686.0,77651.0,0.43252]
[1769888805353,0.28436472,77686.0,77652.0,0.012896]
[1769888806155,0.27147372,77686.0,77651.0,0.43252]
[1769888806557,0.43252,77697.0,77653.0,0.28642463]
[1769888806754,0.27147372,77696.0,77652.0,0.12875149]
[1769888806954,0.27147372,77688.0,77651.0,0.43252]
[1769888807354,0.27147372,77688.0,77657.0,0.012895]
[1769888807648,0.27147372,77678.0,77651.0,0.43252]
[1769888807855,0.28436572,77677.0,77651.0,0.09284]
[1769888808155,0.27147372,77677.0,77651.0,0.09284]
[1769888808457,0.12875066,77676.0,77651.0,0.09284]
[1769888809149,0.01289,77687.0,77652.0,0.28642463]
[1769888809354,0.27147372,77690.0,77652.0,0.27352863]
[1769888809553,0.09284,77697.0,77651.0,0.09284]
[1769888809554,0.12876061,77689.0,77658.0,0.27352863]
[1769888809754,0.09284,77697.0,77675.0,0.012892]
[1769888810355,0.012886,77713.0,77681.0,0.012891]
[1769888810658,0.12872332,77711.0,77675.0,0.27352863]
[1769888810851,0.12872332,77711.0,77675.0,0.28697835]
[1769888811057,0.012887,77709.0,77675.0,0.28697835]
[1769888811257,0.09284,77710.0,77678.0,0.012892]
[1769888811557,0.27147372,77709.0,77677.0,0.012892]
[1769888811757,0.4001871,77709.0,77677.0,0.012892]
[1769888812059,0.27147372,77699.0,77675.0,0.001]
[1769888812554,0.27147372,77699.0,77674.0,0.012892]
[1769888812751,0.27147372,77699.0,77669.0,0.09284]
[1769888812957,0.12872166,77698.0,77669.0,0.09284]
[1769888813159,0.27147372,77697.0,77669.0,0.09284]
[1769888813353,0.28436272,77696.0,77669.0,0.09284]
[1769888813860,0.012889,77694.0,77669.0,0.09284]
[1769888814059,0.12872746,77695.0,77669.0,0.09284]
[1769888814259,0.27147372,77696.0,77669.0,0.09284]
[1769888814659,0.12872995,77695.0,77676.0,0.012892]
[1769888814863,0.09284,77700.0,77676.0,0.012892]
[1769888815056,0.09284,77700.0,77669.0,0.36636863]
[1769888815654,0.09284,77700.0,77681.0,0.012891]
[1769888815960,0.09284,77700.0,77674.0,0.012892]
[1769888816254,0.28436072,77708.0,77676.0,0.012892]
[1769888816659,0.27147372,77695.0,77656.0,0.0928]
[1769888816859,0.27147372,77695.0,77663.0,0.012894]
[1769888817163,0.27147372,77691.0,77656.0,0.0928]
[1769888817359,0.27147372,77675.0,77656.0,0.0928]
[1769888817564,0.0928,77690.0,77660.0,0.012895]
[1769888817862,0.12873492,77689.0,77660.0,0.012895]
[1769888818063,0.12873492,77689.0,77656.0,0.0928]
[1769888818262,0.0928,77690.0,77665.0,0.012894]
[1769888818459,0.0928,77690.0,77673.0,0.012893]
[1769888818659,0.105687,77709.0,77678.0,0.012892]
[1769888818865,0.37716072,77709.0,77678.0,0.012892]
[1769888819061,0.12874569,77702.0,77674.0,0.012892]
[1769888819261,0.37716072,77709.0,77677.0,0.012892]
[1769888819658,0.12872,77705.0,77670.0,0.0928]
[1769888819867,0.36427372,77709.0,77670.0,0.0928]
[1769888820264,0.12872,77708.0,77670.0,0.0928]
[1769888820763,0.012888,77702.0,77671.0,0.27352863]
[1769888820956,0.0928,77709.0,77676.0,0.27352863]
[1769888821161,0.0928,77709.0,77687.0,0.01289]
[1769888821361,0.27147372,77728.0,77688.0,0.36632863]
[1769888821563,0.0928,77726.0,77700.0,0.012888]
[1769888821860,0.0928,77726.0,77693.0,0.27352863]
[1769888822063,0.0928,77726.0,77705.0,0.012887]
[1769888822662,0.05,77736.0,77712.0,0.012886]
[1769888822858,0.05,77736.0,77721.0,0.012885]
[1769888823063,0.049,77736.0,77704.0,0.27352863]
[1769888823266,0.04497159,77736.0,77704.0,0.27352863]
[1769888823570,0.0928,77763.0,77699.0,0.0928]
[1769888823571,0.36427372,77763.0,77733.0,0.012883]
[1769888823958,0.128667,77762.0,77732.0,0.0928]
[1769888824365,0.0928,77763.0,77732.0,0.0928]
[1769888824572,0.28435172,77760.0,77724.0,0.012884]
[1769888824765,0.28435172,77760.0,77718.0,0.0928]
[1769888824967,0.28435372,77749.0,77712.0,0.012886]
[1769888825164,0.27147372,77742.0,77704.0,0.0928]
[1769888825364,0.0928,77748.0,77714.0,0.012886]
[1769888825770,0.12866204,77747.0,77710.0,0.012886]
[1769888826064,0.27147372,77735.0,77704.0,0.0928]
[1769888826271,0.012883,77729.0,77698.0,0.0928]
[1769888826470,0.012885,77718.0,77698.0,0.0928]
[1769888826670,0.012886,77714.0,77686.0,0.12866783]
[1769888826864,0.0928,77717.0,77685.0,0.27352863]
[1769888827069,0.27147372,77728.0,77685.0,0.27352863]
[1769888827269,0.29707983,77739.0,77702.0,0.012888]
[1769888827473,0.10568,77752.0,77712.0,0.29583182]
[1769888827474,0.01288,77747.0,77712.0,0.29583182]
[1769888827676,0.14157036,77744.0,77712.0,0.28294582]
[1769888827969,0.30996083,77741.0,77707.0,0.012887]
[1769888828168,0.12868936,77743.0,77716.0,0.012885]
[1769888828367,0.01288,77751.0,77716.0,0.012885]
[1769888828573,0.0928,77752.0,77717.0,0.09276]
[1769888828574,0.01288,77748.0,77717.0,0.09276]
[1769888828770,0.012881,77741.0,77717.0,0.09276]
[1769888828976,0.29707983,77741.0,77717.0,0.09276]
[1769888829174,0.29707983,77733.0,77703.0,0.09276]
[1769888829372,0.09276,77732.0,77699.0,0.09276]
[1769888829575,0.29707983,77717.0,77688.0,0.12865128]
[1769888829774,0.29707983,77717.0,77686.0,0.01289]
[1769888829975,0.12867032,77731.0,77673.0,0.09276]
[1769888829976,0.012885,77722.0,77689.0,0.01289]
[1769888830275,0.29707983,77724.0,77689.0,0.01289]
[1769888830472,0.012885,77720.0,77689.0,0.01289]
[1769888830673,0.012885,77720.0,77689.0,0.10565]
[1769888830870,0.012885,77718.0,77689.0,0.09276]
[1769888831066,0.38983983,77718.0,77686.0,0.01289]
[1769888831268,0.012888,77703.0,77669.0,0.00013919]
[1769888831467,0.30996883,77694.0,77669.0,0.00013919]
[1769888831776,0.29707983,77694.0,77669.0,0.00013919]
[1769888832476,0.30996883,77694.0,77669.0,0.00013919]
[1769888832676,0.29707983,77694.0,77669.0,0.00013919]
[1769888833076,0.09276,77704.0,77675.0,0.012892]
[1769888833371,0.12873077,77703.0,77671.0,0.012893]
[1769888833878,0.12873077,77703.0,77674.0,0.012892]
[1769888834376,0.012885,77717.0,77681.0,0.012891]
[1769888834571,0.012885,77717.0,77683.0,0.012891]
[1769888834771,0.012885,77718.0,77683.0,0.29583682]
[1769888834977,0.012884,77728.0,77687.0,0.28294582]
[1769888835378,0.33101464,77777.0,77703.0,0.012888]
[1769888835379,0.12871917,77730.0,77703.0,0.012888]
[1769888835579,0.105642,77739.0,77703.0,0.09276]
[1769888835769,0.012882,77736.0,77703.0,0.09276]
[1769888836281,0.105642,77739.0,77703.0,0.37570582]
[1769888836476,0.09276,77739.0,77706.0,0.29583282]
[1769888836673,0.30996283,77734.0,77703.0,0.09276]
[1769888837371,0.29707983,77734.0,77703.0,0.09276]
[1769888837571,0.012882,77737.0,77703.0,0.105648]
[1769888837977,0.12866949,77736.0,77703.0,0.105648]
[1769888838273,0.09276,77739.0,77717.0,0.012885]
[1769888838482,0.01288,77751.0,77719.0,0.012885]
[1769888838679,0.09276,77754.0,77718.0,0.09276]
[1769888838879,0.09276,77754.0,77725.0,0.012884]
[1769888839177,0.012875,77781.0,77719.0,0.28294582]
[1769888839178,0.012877,77767.0,77719.0,0.28294582]
[1769888839380,0.29707983,77769.0,77721.0,0.28294582]
[1769888839578,0.12866783,77764.0,77721.0,0.28294582]
[1769888839777,0.30995683,77767.0,77726.0,0.28294582]
[1769888839972,0.29707983,77758.0,77718.0,0.09276]
[1769888840177,0.29707983,77758.0,77722.0,0.012885]
[1769888840377,0.29707983,77758.0,77729.0,0.012883]
[1769888840576,0.2342729,77757.0,77722.0,0.012885]
[1769888840880,0.29707983,77756.0,77718.0,0.09276]
[1769888841076,0.29707983,77750.0,77720.0,0.012885]
[1769888841283,0.33936,77756.0,77718.0,0.09276]
[1769888841284,0.30995983,77749.0,77718.0,0.09276]
[1769888841481,0.1286339,77749.0,77719.0,0.28294582]
[1769888841684,0.29707983,77761.0,77730.0,0.012883]
[1769888842075,0.22140218,77760.0,77730.0,0.012883]
[1769888842281,0.22140218,77760.0,77718.0,0.09276]
[1769888842282,0.09276,77760.0,77739.0,0.012882]
[1769888842984,0.09276,77776.0,77737.0,0.28294582]
[1769888843278,0.09276,77776.0,77736.0,0.09276]
[1769888843279,0.12862563,77776.0,77742.0,0.28294582]
[1769888843483,0.12862563,77776.0,77750.0,0.01288]
[1769888843982,0.12862563,77776.0,77742.0,0.28294582]
[1769888844185,0.29707983,77781.0,77752.0,0.01288]
[1769888844580,0.09276,77783.0,77753.0,0.09276]
[1769888844886,0.09276,77783.0,77753.0,0.105639]
[1769888845078,0.29707983,77793.0,77753.0,0.09276]
[1769888845079,0.30995283,77793.0,77753.0,0.09276]
[1769888845278,0.012874,77787.0,77755.0,0.012879]
[1769888845480,0.12859007,77787.0,77758.0,0.012878]
[1769888845680,0.29707983,77790.0,77764.0,0.012877]
[1769888845884,0.29707983,77790.0,77753.0,0.37570582]
[1769888845885,0.29707983,77785.0,77753.0,0.09276]
[1769888846083,0.29707983,77777.0,77738.0,0.09276]
[1769888846388,0.29707983,77775.0,77749.0,0.01288]
[1769888846689,0.09276,77774.0,77746.0,0.012881]
[1769888846888,0.38983983,77774.0,77746.0,0.012881]
[1769888847084,0.001,77793.0,77767.0,0.012877]
[1769888847283,0.001,77793.0,77770.0,0.012877]
[1769888847481,0.001,77793.0,77773.0,0.012876]
[1769888847681,0.09272,77803.0,77769.0,0.012877]
[1769888847682,0.29707983,77802.0,77769.0,0.012877]
[1769888847875,0.12856775,77792.0,77763.0,0.09272]
[1769888848077,0.30995183,77797.0,77763.0,0.09272]
[1769888848282,0.29707983,77797.0,77763.0,0.09272]
[1769888848479,0.001,77793.0,77763.0,0.09272]
[1769888848684,0.29807983,77793.0,77764.0,0.012877]
[1769888849484,0.29707983,77788.0,77763.0,0.09272]
[1769888849678,0.29707983,77777.0,77742.0,0.09272]
[1769888849878,0.30995583,77774.0,77742.0,0.105601]
[1769888850080,0.30995683,77771.0,77742.0,0.09272]
[1769888850278,0.29707983,77771.0,77747.0,0.01288]
[1769888850480,0.29707983,77771.0,77742.0,0.105601]
[1769888850780,0.29707983,77770.0,77742.0,0.09372]
[1769888851091,0.09272,77789.0,77750.0,0.28294582]
[1769888851291,0.29707983,77793.0,77764.0,0.012878]
[1769888851589,0.12860661,77791.0,77771.0,0.012876]
[1769888851786,0.09272,77797.0,77774.0,0.012876]
[1769888852185,0.09272,77797.0,77765.0,0.28294582]
[1769888852685,0.09272,77813.0,77791.0,0.012873]
[1769888852890,0.09272,77813.0,77777.0,0.28294582]
[1769888853083,0.09272,77813.0,77788.0,0.012874]
[1769888853291,0.09272,77813.0,77790.0,0.012873]
[1769888853487,0.012867,77827.0,77795.0,0.012872]
[1769888853488,0.09272,77827.0,77795.0,0.012872]
[1769888853789,0.09272,77827.0,77791.0,0.09272]
[1769888853790,0.12853387,77825.0,77791.0,0.09272]
[1769888854092,0.09272,77827.0,77802.0,0.012871]
[1769888854492,0.09272,77827.0,77791.0,0.09272]
[1769888854493,0.29707983,77838.0,77797.0,0.28294582]
[1769888854681,0.29707983,77838.0,77801.0,0.012871]
[1769888854883,0.012866,77834.0,77800.0,0.012872]
[1769888855289,0.29707983,77850.0,77803.0,0.28294582]
[1769888855489,0.29707983,77850.0,77805.0,0.28294582]
[1769888855794,0.42558645,77850.0,77814.0,0.012869]
[1769888855992,0.012864,77847.0,77810.0,0.01287]
[1769888856189,0.12850662,77849.0,77817.0,0.012869]
[1769888856389,0.012864,77848.0,77812.0,0.01287]
[1769888856589,0.29707983,77850.0,77812.0,0.28294582]
[1769888856890,0.1284802,77849.0,77823.0,0.012868]
[1769888857191,0.012862,77859.0,77824.0,0.09268]
[1769888857382,0.012862,77856.0,77824.0,0.09268]
[1769888857581,0.38773489,77860.0,77827.0,0.012867]
[1769888858188,0.012861,77865.0,77833.0,0.012866]
[1769888858391,0.105541,77865.0,77832.0,0.012866]
[1769888858690,0.012861,77865.0,77832.0,0.012866]
[1769888859000,0.28215289,77883.0,77838.0,0.29154189]
[1769888859287,0.012806,77897.0,77856.0,0.29154189]
[1769888859594,0.28215289,77902.0,77862.0,0.012861]
[1769888859893,0.28215289,77902.0,77839.0,1.13139852]
[1769888859894,0.28215289,77901.0,77870.0,0.26822566]
[1769888860089,0.28215289,77899.0,77870.0,0.26822566]
[1769888860691,0.12839525,77898.0,77870.0,0.26822566]
[1769888860892,0.28215289,77897.0,77870.0,0.26822566]
[1769888861087,0.28079271,77895.0,77866.0,0.09268]
[1769888861287,0.28079271,77895.0,77844.0,0.29154189]
[1769888861288,0.28079271,77881.0,77840.0,0.26822566]
[1769888861487,0.28079271,77879.0,77840.0,0.26822566]
[1769888861795,0.28079271,77879.0,77837.0,0.01298727]
[1769888862187,0.09268,77880.0,77843.0,0.28544597]
[1769888862393,0.12843482,77878.0,77848.0,0.28544597]
[1769888862691,0.29364971,77891.0,77850.0,0.27258197]
[1769888862896,0.12843317,77879.0,77862.0,0.27258197]
[1769888863087,0.001,77898.0,77868.0,0.27258197]
[1769888863288,0.09264,77914.0,77874.0,0.28544097]
[1769888863590,0.12843317,77913.0,77874.0,0.28544097]
[1769888864191,0.12843317,77913.0,77874.0,0.27258197]
[1769888864588,0.12843317,77913.0,77875.0,0.28544097]
[1769888864900,0.09264,77914.0,77881.0,0.27258197]
[1769888865199,0.09264,77914.0,77883.0,0.28543997]
[1769888865494,0.12838041,77913.0,77871.0,0.27258197]
[1769888865691,0.37343271,77914.0,77873.0,0.28544197]
[1769888865892,0.09264,77914.0,77873.0,0.28544197]
[1769888866094,0.09264,77914.0,77873.0,0.27258197]
[1769888866295,0.12837217,77913.0,77873.0,0.27258197]
[1769888866595,0.012853,77912.0,77873.0,0.27258197]
[1769888866791,0.29364571,77912.0,77873.0,0.27258197]
[1769888866984,0.09264,77914.0,77875.0,0.27258197]
[1769888867190,0.28079271,77923.0,77875.0,0.27258197]
[1769888867397,0.28079271,77912.0,77870.0,0.09264]
[1769888867695,0.28079271,77910.0,77871.0,0.27258197]
[1769888867895,0.28079271,77894.0,77820.0,0.27258197]
[1769888868092,0.28079271,77866.0,77820.0,0.26970424]
[1769888868290,0.012857,77889.0,77814.0,0.02597062]
[1769888868291,0.28079271,77875.0,77814.0,0.01310162]
[1769888868486,0.29365371,77866.0,77813.0,0.0926]
[1769888868688,0.28079271,77860.0,77815.0,0.12837135]
[1769888868997,0.012864,77844.0,77799.0,0.0926]
[1769888869185,0.28079271,77847.0,77799.0,0.0926]
[1769888869186,0.43150271,77843.0,77807.0,0.01287]
[1769888869390,0.40150271,77843.0,77800.0,0.13448609]
[1769888869693,0.06270271,77843.0,77814.0,0.012869]
[1769888869900,0.06270271,77843.0,77818.0,0.012869]
[1769888870099,0.06270271,77843.0,77821.0,0.28544997]
[1769888870296,0.06270271,77843.0,77821.0,0.37804997]
[1769888870498,4.54e-05,77842.0,77825.0,0.012867]
[1769888870693,4.54e-05,77842.0,77829.0,0.012867]
[1769888870893,4.54e-05,77842.0,77823.0,0.012868]
[1769888871503,4.54e-05,77842.0,77822.0,0.012868]
[1769888872293,4.54e-05,77842.0,77821.0,0.0926]
[1769888872690,4.54e-05,77842.0,77818.0,0.001]
[1769888872691,0.28079271,77840.0,77818.0,0.001]
[1769888872893,0.28079271,77839.0,77797.0,0.27258197]
[1769888873093,4.54e-05,77842.0,77822.0,0.001]
[1769888873494,0.12848268,77841.0,77822.0,0.001]
[1769888873901,0.12848268,77841.0,77807.0,0.27258197]
[1769888874101,0.12848268,77841.0,77811.0,0.01287]
[1769888874402,0.12848268,77841.0,77807.0,0.27258197]
[1769888874403,0.12848268,77841.0,77812.0,0.01287]
[1769888874598,4.54e-05,77842.0,77815.0,0.012819]
[1769888875097,4.54e-05,77842.0,77809.0,0.0926]
[1769888875297,0.40928447,77841.0,77809.0,0.0926]
[1769888875496,0.28079271,77840.0,77809.0,0.0926]
[1769888875698,0.28079271,77836.0,77798.0,0.012872]
[1769888875899,0.28079271,77834.0,77798.0,0.012872]
[1769888876100,0.28079271,77834.0,77795.0,0.0926]
[1769888876101,0.28079271,77832.0,77795.0,0.0926]
[1769888876398,0.29366071,77822.0,77795.0,0.0926]
[1769888876600,0.28079271,77818.0,77781.0,0.0926]
[1769888876800,0.29366271,77811.0,77781.0,0.0926]
[1769888876996,0.28083811,77810.0,77781.0,0.0926]
[1769888877196,0.1285578,77810.0,77782.0,0.012875]
[1769888877401,4.54e-05,77810.0,77782.0,0.012875]
[1769888877997,4.54e-05,77810.0,77785.0,0.012874]
[1769888878493,4.54e-05,77810.0,77788.0,0.012873]
[1769888878697,0.28079271,77842.0,77791.0,0.27258197]
[1769888878896,0.0926,77843.0,77803.0,0.27258197]
[1769888879097,0.0926,77843.0,77805.0,0.27258197]
[1769888879098,0.12853883,77841.0,77805.0,0.27258197]
[1769888879398,0.0926,77843.0,77805.0,0.27258197]
[1769888879600,0.29365471,77858.0,77822.0,0.012868]
[1769888879799,0.09264,77857.0,77821.0,0.012868]
[1769888879999,0.12849671,77848.0,77823.0,0.012868]
[1769888880202,0.001,77843.0,77819.0,0.09264]
[1769888880501,0.28079271,77841.0,77819.0,0.09264]
[1769888880892,0.28079271,77841.0,77796.0,0.27258197]
[1769888880893,0.28079271,77835.0,77796.0,0.27258197]
[1769888881093,0.28079271,77833.0,77793.0,0.012873]
[1769888881293,0.28079271,77824.0,77789.0,0.09264]
[1769888881492,0.33884,77841.0,77789.0,0.09264]
[1769888881493,0.1284835,77832.0,77799.0,0.27258197]
[1769888881697,0.1284835,77832.0,77805.0,0.012871]
[1769888881897,0.28079271,77839.0,77792.0,0.27258197]
[1769888882104,0.12852396,77838.0,77808.0,0.01287]
[1769888882300,0.28079271,77839.0,77808.0,0.01287]
[1769888882497,0.28079271,77839.0,77792.0,0.27258197]
[1769888882702,0.12852396,77838.0,77817.0,0.012869]
[1769888883001,0.28079271,77851.0,77817.0,0.012869]
[1769888883002,0.09264,77843.0,77817.0,0.012869]
[1769888883406,0.09264,77843.0,77820.0,0.012868]
[1769888883603,0.28079271,77842.0,77796.0,0.15149401]
[1769888883804,0.28079271,77842.0,77793.0,0.43148]
[1769888883805,0.28079271,77835.0,77803.0,0.012871]
[1769888884005,0.28079271,77835.0,77806.0,0.012871]
[1769888884205,0.28079271,77835.0,77808.0,0.01287]
[1769888884405,0.12848515,77834.0,77808.0,0.01287]
[1769888884603,0.012867,77828.0,77793.0,0.43148]
[1769888884906,0.12848515,77834.0,77793.0,0.43148]
[1769888884907,0.28079271,77820.0,77793.0,0.09264]
[1769888885106,0.33884,77827.0,77793.0,0.09264]
[1769888885107,0.28079271,77817.0,77793.0,0.09264]
[1769888885405,0.28079271,77812.0,77777.0,0.012875]
[1769888885607,0.28079271,77809.0,77780.0,0.26889616]
[1769888885801,0.28079271,77809.0,77780.0,0.28177116]
[1769888886401,0.29366271,77808.0,77780.0,0.26889616]
[1769888886598,0.29366371,77805.0,77780.0,0.26889616]
[1769888886806,0.19606352,77793.0,77773.0,0.00010579]
[1769888887106,0.28870352,77793.0,77773.0,0.00010579]
[1769888887311,0.19606352,77792.0,77773.0,0.00010579]
[1769888887507,0.19143543,77788.0,77770.0,1e-08]
[1769888887702,0.012874,77789.0,77752.0,0.01288]
[1769888887703,0.012874,77787.0,77752.0,0.01288]
[1769888887910,0.19143543,77782.0,77750.0,0.26889616]
[1769888888102,0.20431043,77782.0,77750.0,0.26889616]
[1769888888405,0.19143543,77782.0,77750.0,0.28177616]
[1769888888711,0.20331043,77780.0,77750.0,0.26889616]
[1769888888901,0.012875,77777.0,77750.0,0.26889616]
[1769888889317,0.32002633,77776.0,77750.0,0.26889616]
[1769888889609,0.00010579,77781.0,77750.0,0.54780561]
[1769888889812,0.00010579,77781.0,77766.0,0.26889616]
[1769888890201,0.00010579,77781.0,77750.0,0.26889616]
[1769888890202,0.001,77777.0,77750.0,0.26889616]
[1769888890406,0.09264,77776.0,77750.0,0.26889616]
[1769888890612,0.20608977,77774.0,77750.0,0.26889616]
[1769888890911,0.012877,77769.0,77750.0,0.26889616]
[1769888891112,0.20608977,77773.0,77750.0,0.26889616]
[1769888891307,0.19321377,77759.0,77720.0,0.00012999]
[1769888891500,0.09274579,77758.0,77730.0,0.26889616]
[1769888891707,0.09274579,77758.0,77738.0,0.012882]
[1769888892011,0.09274579,77758.0,77734.0,0.012882]
[1769888892408,0.09274579,77758.0,77737.0,0.012882]
[1769888892711,0.09274579,77758.0,77734.0,0.09264]
[1769888893909,0.19625353,77754.0,77720.0,0.00012999]
[1769888894306,0.012881,77746.0,77720.0,0.00012999]
[1769888894513,0.00010579,77745.0,77720.0,0.00012999]
[1769888894811,0.19625353,77742.0,77720.0,0.00012999]
[1769888895409,0.012882,77739.0,77720.0,0.00012999]
[1769888896315,0.1286488,77738.0,77720.0,0.00012999]
[1769888897514,0.00010579,77745.0,77725.0,0.012884]
[1769888897812,0.09268,77774.0,77744.0,0.012881]
[1769888898007,0.09268,77774.0,77751.0,0.01288]
[1769888898309,0.08870363,77774.0,77761.0,0.012878]
[1769888898512,0.09268,77789.0,77761.0,0.012878]
[1769888899315,0.09268,77789.0,77758.0,0.09268]
[1769888899316,0.21184663,77785.0,77758.0,0.09268]
[1769888900009,0.1285818,77784.0,77759.0,0.27890945]
[1769888900220,0.012871,77804.0,77758.0,0.09268]
[1769888900514,0.1285818,77806.0,77769.0,0.27890945]
[1769888900916,0.19846195,77810.0,77778.0,0.012875]